fUST/lending_fUST_20240902
["ID","MTS","AMOUNT","RATE_DAILY","PERIOD"]
[336846220,1725208541373,-10060.76,0.00026027,2]
[336846221,1725208541400,-662.39,0.00026027,2]
[336846222,1725208541425,-1977.52,0.00026027,2]
[336846223,1725208541448,-551.67,0.00026027,2]
[336846224,1725208541473,-2547.84,0.00026027,2]
[336846225,1725208541498,-683.21,0.00026027,2]
[336846226,1725208541522,-500.0,0.00026027,2]
[336846227,1725208541546,-500.0,0.00026027,2]
[336846228,1725208541570,-1076.23,0.00026027,2]
[336846229,1725208541594,-1563.4,0.00026027,2]
[336846230,1725208541617,-2136.59,0.00026027,2]
[336846231,1725208541641,-597.53,0.00026027,2]
[336846232,1725208541665,-1412.58,0.00026027,2]
[336846233,1725208541688,-500.0,0.00026027,2]
[336846234,1725208541713,-500.0,0.00026027,2]
[336846235,1725208541737,-500.0,0.00026027,2]
[336846236,1725208541761,-937.31,0.00026027,2]
[336846237,1725208541785,-624.83,0.00026027,2]
[336846238,1725208541808,-679.44,0.00026027,2]
[336846239,1725208541832,-2321.06,0.00026027,2]
[336846240,1725208541856,-1642.54,0.00026027,2]
[336846241,1725208541880,-500.0,0.00026027,2]
[336846242,1725208541904,-500.0,0.00026027,2]
[336846243,1725208541929,-1615.73,0.00026027,2]
[336846244,1725208541953,-2223.21,0.00026027,2]
[336846245,1725208541976,-605.87,0.00026027,2]
[336846246,1725208542001,-500.0,0.00026027,2]
[336846247,1725208542027,-500.0,0.00026027,2]
[336846248,1725208542053,-505.27,0.00026027,2]
[336846249,1725208542078,-2541.93,0.00026027,2]
[336846250,1725208542102,-500.0,0.00026027,2]
[336846251,1725208542126,-500.0,0.00026027,2]
[336846252,1725208542150,-2393.85,0.00026027,2]
[336846253,1725208542173,-1003.61,0.00026027,2]
[336846254,1725208542197,-500.0,0.00026027,2]
[336846255,1725208542221,-3000.0,0.0002603,2]
[336846256,1725208542245,-3000.0,0.0002604,2]
[336846257,1725208542270,-3000.0,0.0002605,2]
[336846258,1725208542294,-3000.0,0.0002606,2]
[336846259,1725208542322,-3000.0,0.0002607,2]
[336846260,1725208542347,-500.0,0.00026073,2]
[336846261,1725208542373,-3000.0,0.0002608,2]
[336846262,1725208542400,-3000.0,0.0002609,2]
[336846263,1725208542425,-150.112233,0.000261,5]
[336846264,1725208542449,-2009.8,0.000261,7]
[336846265,1725208542473,-3000.0,0.000261,2]
[336846266,1725208542496,-3000.0,0.0002611,2]
[336846267,1725208542522,-3000.0,0.0002612,2]
[336846268,1725208542546,-3000.0,0.0002613,2]
[336846269,1725208542570,-3000.0,0.0002614,2]
[336846270,1725208542593,-250.0,0.0002615,7]
[336846271,1725208542616,-250.0,0.0002615,7]
[336846272,1725208542641,-3000.0,0.0002615,2]
[336846273,1725208542666,-3000.0,0.0002616,2]
[336846274,1725208542690,-3000.0,0.0002617,2]
[336846275,1725208542714,-150.112233,0.000262,5]
[336846276,1725208542738,-150.112233,0.000262,6]
[336846277,1725208542762,-3000.0,0.0002623,2]
[336846278,1725208542785,-3000.0,0.0002624,2]
[336846279,1725208542809,-3000.0,0.0002625,2]
[336846280,1725208542832,-3000.0,0.0002626,2]
[336846281,1725208542856,-150.112233,0.000263,5]
[336846282,1725208542879,-5788.99104361,0.00026301,11]
[336846283,1725208542902,-500.0,0.00026301,2]
[336846284,1725208542926,-1399.19,0.00026301,2]
[336846285,1725208542950,-500.0,0.00026301,2]
[336846286,1725208543138,-500.0,0.00026301,2]
[336846287,1725208543163,-500.0,0.00026301,2]
[336846288,1725208543187,-250.0,0.00026301,7]
[336846289,1725208543212,-250.0,0.00026301,7]
[336846290,1725208543236,-500.0,0.00026301,2]
[336846291,1725208543261,-1035.37,0.00026301,2]
[336846292,1725208543284,-500.0,0.00026301,2]
[336846293,1725208543309,-500.0,0.00026301,2]
[336846294,1725208543333,-500.0,0.00026301,2]
[336846295,1725208543359,-500.0,0.00026301,2]
[336846296,1725208543383,-500.0,0.00026301,2]
[336846297,1725208543408,-500.0,0.00026301,2]
[336846298,1725208543432,-774.17,0.00026301,2]
[336846299,1725208543456,-743.54,0.00026301,2]
[336846300,1725208543482,-271.67780194,0.00026301,2]
[336846301,1725208543506,-675.09,0.00026301,2]
[336846302,1725208543530,-500.0,0.00026301,2]
[336846303,1725208543554,-659.95,0.00026301,2]
[336846304,1725208543578,-713.87,0.00026301,2]
[336846305,1725208543601,-706.75,0.00026301,2]
[336846306,1725208543625,-500.0,0.00026301,2]
[336846307,1725208543648,-577.91,0.00026301,2]
[336846308,1725208543672,-500.0,0.00026301,2]
[336846309,1725208543696,-1264.63,0.00026301,2]
[336846310,1725208543729,-2037.44,0.00026301,2]
[336846311,1725208543754,-500.0,0.00026301,2]
[336846312,1725208543778,-1592.91,0.00026301,2]
[336846313,1725208543803,-2244.05,0.00026301,2]
[336846314,1725208543828,-530.88,0.00026301,2]
[336846315,1725208543852,-500.0,0.00026301,2]
[336846316,1725208543876,-500.0,0.00026301,2]
[336846317,1725208543903,-500.0,0.00026301,2]
[336846318,1725208543928,-500.0,0.00026301,2]
[336846319,1725208543953,-500.0,0.00026301,2]
[336846320,1725208543978,-517.37,0.00026301,2]
[336846321,1725208544002,-1559.63,0.00026301,2]
[336846322,1725208544026,-500.0,0.00026301,2]
[336846323,1725208544050,-500.0,0.00026301,2]
[336846324,1725208544075,-500.0,0.00026301,2]
[336846325,1725208544098,-540.89,0.00026301,2]
[336846326,1725208544121,-616.42,0.00026301,2]
[336846327,1725208544146,-1049.07,0.00026301,2]
[336846328,1725208544170,-500.0,0.00026301,2]
[336846329,1725208544194,-349.146511,0.00026301,7]
[336846330,1725208544217,-737.46,0.00026301,2]
[336846331,1725208544241,-602.39,0.00026301,2]
[336846332,1725208544265,-349.146511,0.00026301,7]
[336846333,1725208544289,-828.6,0.00026301,2]
[336846334,1725208544316,-1094.09,0.00026301,2]
[336846335,1725208544340,-500.0,0.00026301,2]
[336846336,1725208544367,-528.88123642,0.00026301,2]
[336846337,1725208544392,-500.0,0.00026301,2]
[336846338,1725208544417,-1436.31,0.00026301,2]
[336846339,1725208544441,-500.0,0.00026301,2]
[336846340,1725208544465,-914.04,0.00026301,2]
[336846341,1725208544490,-974.0,0.00026301,2]
[336846342,1725208544514,-2241.31,0.00026301,2]
[336846343,1725208544538,-500.0,0.00026301,2]
[336846344,1725208544571,-500.0,0.00026301,2]
[336846345,1725208544604,-258.2864906,0.00026301,2]
[336846346,1725208544637,-571.88,0.00026301,2]
[336846347,1725208544669,-500.0,0.00026301,2]
[336846348,1725208544701,-500.0,0.00026301,2]
[336846349,1725208544733,-500.0,0.00026301,2]
[336846350,1725208544764,-1141.93,0.00026301,2]
[336846351,1725208544796,-499.442162,0.00026301,7]
[336846352,1725208544829,-564.06,0.00026301,2]
[336846353,1725208544861,-500.0,0.00026301,2]
[336846354,1725208544894,-499.442162,0.00026301,7]
[336846355,1725208544927,-500.0,0.00026301,2]
[336846356,1725208544959,-1601.33,0.00026301,2]
[336846357,1725208544991,-500.0,0.00026301,2]
[336846358,1725208545023,-500.0,0.00026301,2]
[336846359,1725208545055,-749.01,0.00026301,2]
[336846360,1725208545086,-710.82,0.00026301,2]
[336846361,1725208545117,-500.0,0.00026301,2]
[336846362,1725208545149,-500.0,0.00026301,2]
[336846363,1725208545180,-1258.62,0.00026301,2]
[336846364,1725208545211,-2055.11,0.00026301,2]
[336846365,1725208545243,-799.77,0.00026301,2]
[336846366,1725208545274,-593.47,0.00026301,2]
[336846367,1725208545308,-958.67,0.00026301,2]
[336846368,1725208545340,-500.0,0.00026301,2]
[336846369,1725208545372,-500.0,0.00026301,2]
[336846370,1725208545406,-518.21,0.00026301,2]
[336846371,1725208545438,-500.0,0.00026301,2]
[336846372,1725208545471,-500.0,0.00026301,2]
[336846373,1725208545503,-689.45,0.00026301,2]
[336846374,1725208545534,-500.0,0.00026301,2]
[336846375,1725208545565,-500.0,0.00026301,2]
[336846376,1725208545596,-500.0,0.00026301,2]
[336846377,1725208545630,-298.09377482,0.00026301,2]
[336846378,1725208545663,-500.0,0.00026301,2]
[336846379,1725208545696,-500.0,0.00026301,2]
[336846380,1725208545731,-500.0,0.00026301,2]
[336846381,1725208545763,-500.0,0.00026301,2]
[336846382,1725208545796,-500.0,0.00026301,2]
[336846383,1725208545828,-500.0,0.00026301,2]
[336846384,1725208545862,-551.14,0.00026301,2]
[336846385,1725208545894,-500.0,0.00026301,2]
[336846386,1725208545927,-500.0,0.00026301,2]
[336846387,1725208545962,-500.0,0.00026301,2]
[336846388,1725208545994,-500.0,0.00026301,2]
[336846389,1725208546025,-373.656691,0.00026301,7]
[336846390,1725208546056,-411.85883533,0.00026301,2]
[336846391,1725208546089,-500.0,0.00026301,2]
[336846392,1725208546122,-993.8,0.00026301,2]
[336846393,1725208546153,-824.95,0.00026301,2]
[336846394,1725208546186,-151.0,0.00026301,7]
[336846395,1725208546218,-500.0,0.00026301,2]
[336846396,1725208546251,-500.0,0.00026301,2]
[336846397,1725208546282,-500.0,0.00026301,2]
[336846398,1725208546315,-483.96575754,0.00026301,2]
[336846399,1725208546349,-569.86,0.00026301,2]
[336846400,1725208546383,-500.0,0.00026301,2]
[336846401,1725208546419,-2707.82,0.00026301,2]
[336846402,1725208546452,-2694.87,0.00026301,2]
[336846403,1725208546489,-500.0,0.00026301,2]
[336846404,1725208546521,-500.0,0.00026301,2]
[336846405,1725208546554,-500.0,0.00026301,2]
[336846406,1725208546588,-12817.37,0.00026301,2]
[336846407,1725208546620,-1985.04,0.00026301,2]
[336846408,1725208546655,-2836.5,0.00026301,2]
[336846409,1725208546686,-500.0,0.00026301,2]
[336846410,1725208546719,-500.0,0.00026301,2]
[336846411,1725208546752,-2201.24,0.00026301,2]
[336846412,1725208546784,-500.0,0.00026301,2]
[336846413,1725208546816,-500.0,0.00026301,2]
[336846414,1725208546848,-4445.91,0.00026301,2]
[336846415,1725208546879,-872.85,0.00026301,2]
[336846416,1725208547055,-564.24,0.00026301,2]
[336846417,1725208547090,-2251.65,0.00026301,2]
[336846418,1725208547123,-982.52,0.00026301,2]
[336846419,1725208547155,-510.49,0.00026301,2]
[336846420,1725208547187,-500.0,0.00026301,2]
[336846421,1725208547221,-3333.34,0.00026301,2]
[336846422,1725208547253,-500.0,0.00026301,2]
[336846423,1725208547286,-793.81,0.00026301,2]
[336846424,1725208547319,-532.25,0.00026301,2]
[336846425,1725208547352,-500.0,0.00026301,2]
[336846426,1725208547385,-500.0,0.00026301,2]
[336846427,1725208547418,-520.07,0.00026301,2]
[336846428,1725208547450,-788.39,0.00026301,2]
[336846429,1725208547484,-1344.05,0.00026301,2]
[336846430,1725208547515,-650.81,0.00026301,2]
[336846431,1725208547548,-2003.28,0.00026301,2]
[336846432,1725208547581,-1685.35,0.00026301,2]
[336846433,1725208547614,-1902.09,0.00026301,2]
[336846434,1725208547645,-518.29,0.00026301,2]
[336846435,1725208547677,-500.0,0.00026301,2]
[336846436,1725208547709,-500.0,0.00026301,2]
[336846437,1725208547740,-296.42311592,0.00026301,2]
[336846438,1725208547772,-521.69064609,0.00026301,2]
[336846439,1725208547803,-1976.48,0.00026301,2]
[336846440,1725208547835,-1359.91,0.00026301,2]
[336846441,1725208547868,-1808.54,0.00026301,2]
[336846442,1725208547899,-880.31,0.00026301,2]
[336846443,1725208547931,-513.91093587,0.00026301,2]
[336846444,1725208547962,-2213.92,0.00026301,2]
[336846445,1725208547993,-546.38,0.00026301,2]
[336846446,1725208548026,-3134.93,0.00026301,2]
[336846447,1725208548059,-919.7,0.00026301,2]
[336846448,1725208548092,-480.37499449,0.00026301,2]
[336846449,1725208548126,-500.0,0.00026301,2]
[336846450,1725208548158,-1758.51,0.00026301,2]
[336846451,1725208548191,-811.51,0.00026301,2]
[336846452,1725208548225,-1405.42,0.00026301,2]
[336846453,1725208548259,-500.0,0.00026301,2]
[336846454,1725208548293,-867.6,0.00026301,2]
[336846455,1725208548333,-1494.95,0.00026301,2]
[336846456,1725208548369,-799.97,0.00026301,2]
[336846457,1725208548402,-718.17,0.00026301,2]
[336846458,1725208548435,-982.8,0.00026301,2]
[336846459,1725208548470,-500.0,0.00026301,2]
[336846460,1725208548505,-5754.37,0.00026301,2]
[336846461,1725208548538,-500.0,0.00026301,2]
[336846462,1725208548573,-10060.76,0.00026301,2]
[336846463,1725208548604,-662.39,0.00026301,2]
[336846464,1725208548639,-1977.52,0.00026301,2]
[336846465,1725208548673,-551.67,0.00026301,2]
[336846466,1725208548707,-2547.84,0.00026301,2]
[336846467,1725208548740,-683.21,0.00026301,2]
[336846468,1725208548773,-500.0,0.00026301,2]
[336846469,1725208548806,-500.0,0.00026301,2]
[336846470,1725208548840,-1076.23,0.00026301,2]
[336846471,1725208548874,-1563.4,0.00026301,2]
[336846472,1725208548908,-2136.59,0.00026301,2]
[336846473,1725208548941,-597.53,0.00026301,2]
[336846474,1725208548975,-1412.58,0.00026301,2]
[336846475,1725208549006,-500.0,0.00026301,2]
[336846476,1725208549038,-500.0,0.00026301,2]
[336846477,1725208549069,-500.0,0.00026301,2]
[336846478,1725208549100,-937.31,0.00026301,2]
[336846479,1725208549130,-624.83,0.00026301,2]
[336846480,1725208549160,-679.44,0.00026301,2]
[336846481,1725208549193,-2321.06,0.00026301,2]
[336846482,1725208549226,-1642.54,0.00026301,2]
[336846483,1725208549257,-500.0,0.00026301,2]
[336846484,1725208549288,-500.0,0.00026301,2]
[336846485,1725208549321,-1615.73,0.00026301,2]
[336846486,1725208549354,-2223.21,0.00026301,2]
[336846487,1725208549387,-605.87,0.00026301,2]
[336846488,1725208549420,-500.0,0.00026301,2]
[336846489,1725208549453,-500.0,0.00026301,2]
[336846490,1725208549485,-505.27,0.00026301,2]
[336846491,1725208549517,-2541.93,0.00026301,2]
[336846492,1725208549550,-500.0,0.00026301,2]
[336846493,1725208549582,-500.0,0.00026301,2]
[336846494,1725208549615,-2393.85,0.00026301,2]
[336846495,1725208549646,-1003.61,0.00026301,2]
[336846496,1725208549678,-457.78333051,0.00026301,2]
[336846497,1725208549708,-153.0,0.00026345,2]
[336846498,1725208549746,-153.0,0.00026345,2]
[336846499,1725208549779,-153.0,0.00026345,2]
[336846500,1725208549811,-153.0,0.00026345,2]
[336846501,1725208549843,-153.0,0.00026345,2]
[336846502,1725208549875,-153.0,0.00026345,2]
[336846503,1725208549908,-150.112233,0.000264,10]
[336846504,1725208549939,-7458.94652043,0.0002649,2]
[336846505,1725208549972,-150.112233,0.000265,9]
[336846506,1725208550004,-500.0,0.00026575,2]
[336846507,1725208550037,-1399.19,0.00026575,2]
[336846508,1725208550071,-500.0,0.00026575,2]
[336846509,1725208550104,-500.0,0.00026575,2]
[336846510,1725208550135,-500.0,0.00026575,2]
[336846511,1725208550167,-500.0,0.00026575,2]
[336846512,1725208550198,-1035.37,0.00026575,2]
[336846513,1725208550234,-500.0,0.00026575,2]
[336846514,1725208550266,-500.0,0.00026575,2]
[336846515,1725208550298,-500.0,0.00026575,2]
[336846516,1725208550334,-500.0,0.00026575,2]
[336846517,1725208550368,-500.0,0.00026575,2]
[336846518,1725208550401,-500.0,0.00026575,2]
[336846519,1725208550433,-774.17,0.00026575,2]
[336846520,1725208550467,-743.54,0.00026575,2]
[336846521,1725208550498,-675.09,0.00026575,2]
[336846522,1725208550530,-500.0,0.00026575,2]
[336846523,1725208550563,-659.95,0.00026575,2]
[336846524,1725208550595,-713.87,0.00026575,2]
[336846525,1725208550628,-706.75,0.00026575,2]
[336846526,1725208550659,-500.0,0.00026575,2]
[336846527,1725208550689,-577.91,0.00026575,2]
[336846528,1725208550741,-500.0,0.00026575,2]
[336846529,1725208550775,-1264.63,0.00026575,2]
[336846530,1725208550808,-2037.44,0.00026575,2]
[336846531,1725208550841,-518.77241438,0.00026575,2]
[336846532,1725208550875,-1592.91,0.00026575,2]
[336846533,1725208550911,-2244.05,0.00026575,2]
[336846534,1725208550945,-530.88,0.00026575,2]
[336846535,1725208550981,-500.0,0.00026575,2]
[336846536,1725208551012,-500.0,0.00026575,2]
[336846537,1725208551046,-500.0,0.00026575,2]
[336846538,1725208551078,-500.0,0.00026575,2]
[336846539,1725208551111,-500.0,0.00026575,2]
[336846540,1725208551144,-517.37,0.00026575,2]
[336846541,1725208551176,-1559.63,0.00026575,2]
[336846542,1725208551209,-500.0,0.00026575,2]
[336846543,1725208551242,-500.0,0.00026575,2]
[336846544,1725208551276,-500.0,0.00026575,2]
[336846545,1725208551311,-540.89,0.00026575,2]
[336846546,1725208551544,-616.42,0.00026575,2]
[336846547,1725208551578,-1049.07,0.00026575,2]
[336846548,1725208551612,-500.0,0.00026575,2]
[336846549,1725208551645,-349.146511,0.00026575,7]
[336846550,1725208551680,-737.46,0.00026575,2]
[336846551,1725208551717,-602.39,0.00026575,2]
[336846552,1725208551753,-828.6,0.00026575,2]
[336846553,1725208551785,-349.146511,0.00026575,7]
[336846554,1725208551817,-1094.09,0.00026575,2]
[336846555,1725208551850,-500.0,0.00026575,2]
[336846556,1725208551883,-500.0,0.00026575,2]
[336846557,1725208551914,-1436.31,0.00026575,2]
[336846558,1725208551946,-500.0,0.00026575,2]
[336846559,1725208551979,-914.04,0.00026575,2]
[336846560,1725208552010,-974.0,0.00026575,2]
[336846561,1725208552043,-2241.31,0.00026575,2]
[336846562,1725208552076,-500.0,0.00026575,2]
[336846563,1725208552108,-500.0,0.00026575,2]
[336846564,1725208552139,-571.88,0.00026575,2]
[336846565,1725208552172,-500.0,0.00026575,2]
[336846566,1725208552204,-500.0,0.00026575,2]
[336846567,1725208552237,-500.0,0.00026575,2]
[336846568,1725208552270,-1141.93,0.00026575,2]
[336846569,1725208552302,-564.06,0.00026575,2]
[336846570,1725208552341,-499.442162,0.00026575,7]
[336846571,1725208552374,-500.0,0.00026575,2]
[336846572,1725208552409,-499.442162,0.00026575,7]
[336846573,1725208552440,-500.0,0.00026575,2]
[336846574,1725208552472,-1601.33,0.00026575,2]
[336846575,1725208552503,-500.0,0.00026575,2]
[336846576,1725208552534,-500.0,0.00026575,2]
[336846577,1725208552567,-749.01,0.00026575,2]
[336846578,1725208552599,-710.82,0.00026575,2]
[336846579,1725208552632,-500.0,0.00026575,2]
[336846580,1725208552665,-500.0,0.00026575,2]
[336846581,1725208552697,-1258.62,0.00026575,2]
[336846582,1725208552728,-2055.11,0.00026575,2]
[336846583,1725208552760,-799.77,0.00026575,2]
[336846584,1725208552792,-593.47,0.00026575,2]
[336846585,1725208552824,-958.67,0.00026575,2]
[336846586,1725208552857,-500.0,0.00026575,2]
[336846587,1725208552890,-500.0,0.00026575,2]
[336846588,1725208552923,-518.21,0.00026575,2]
[336846589,1725208552955,-500.0,0.00026575,2]
[336846590,1725208552990,-500.0,0.00026575,2]
[336846591,1725208553021,-689.45,0.00026575,2]
[336846592,1725208553055,-500.0,0.00026575,2]
[336846593,1725208553088,-500.0,0.00026575,2]
[336846594,1725208553121,-500.0,0.00026575,2]
[336846595,1725208553153,-265.49495375,0.00026575,2]
[336846596,1725208553184,-500.0,0.00026575,2]
[336846597,1725208553219,-500.0,0.00026575,2]
[336846598,1725208553253,-500.0,0.00026575,2]
[336846599,1725208553288,-500.0,0.00026575,2]
[336846600,1725208553323,-500.0,0.00026575,2]
[336846601,1725208553357,-551.14,0.00026575,2]
[336846602,1725208553390,-500.0,0.00026575,2]
[336846603,1725208553422,-500.0,0.00026575,2]
[336846604,1725208553455,-500.0,0.00026575,2]
[336846605,1725208553492,-500.0,0.00026575,2]
[336846606,1725208553525,-500.0,0.00026575,2]
[336846607,1725208553558,-993.8,0.00026575,2]
[336846608,1725208553591,-824.95,0.00026575,2]
[336846609,1725208553623,-179.799395,0.00026575,7]
[336846610,1725208553657,-500.0,0.00026575,2]
[336846611,1725208553689,-500.0,0.00026575,2]
[336846612,1725208553721,-500.0,0.00026575,2]
[336846613,1725208553753,-569.86,0.00026575,2]
[336846614,1725208553786,-500.0,0.00026575,2]
[336846615,1725208553820,-2707.82,0.00026575,2]
[336846616,1725208553854,-2694.87,0.00026575,2]
[336846617,1725208553887,-500.0,0.00026575,2]
[336846618,1725208553920,-500.0,0.00026575,2]
[336846619,1725208553952,-500.0,0.00026575,2]
[336846620,1725208553989,-12817.37,0.00026575,2]
[336846621,1725208554021,-1985.04,0.00026575,2]
[336846622,1725208554054,-2836.5,0.00026575,2]
[336846623,1725208554085,-500.0,0.00026575,2]
[336846624,1725208554116,-500.0,0.00026575,2]
[336846625,1725208554148,-2201.24,0.00026575,2]
[336846626,1725208554179,-500.0,0.00026575,2]
[336846627,1725208554211,-585.56050782,0.00026575,2]
[336846628,1725208554251,-4445.91,0.00026575,2]
[336846629,1725208554283,-872.85,0.00026575,2]
[336846630,1725208554315,-564.24,0.00026575,2]
[336846631,1725208554349,-2251.65,0.00026575,2]
[336846632,1725208554381,-982.52,0.00026575,2]
[336846633,1725208554415,-510.49,0.00026575,2]
[336846634,1725208554447,-500.0,0.00026575,2]
[336846635,1725208554481,-3333.34,0.00026575,2]
[336846636,1725208554513,-500.0,0.00026575,2]
[336846637,1725208554546,-793.81,0.00026575,2]
[336846638,1725208554580,-532.25,0.00026575,2]
[336846639,1725208554611,-500.0,0.00026575,2]
[336846640,1725208554642,-500.0,0.00026575,2]
[336846641,1725208554674,-520.07,0.00026575,2]
[336846642,1725208554705,-788.39,0.00026575,2]
[336846643,1725208554738,-1344.05,0.00026575,2]
[336846644,1725208554771,-2003.28,0.00026575,2]
[336846645,1725208554805,-1685.35,0.00026575,2]
[336846646,1725208554838,-650.81,0.00026575,2]
[336846647,1725208554873,-1902.09,0.00026575,2]
[336846648,1725208554907,-518.29,0.00026575,2]
[336846649,1725208554940,-500.0,0.00026575,2]
[336846650,1725208554973,-1976.48,0.00026575,2]
[336846651,1725208555005,-1359.91,0.00026575,2]
[336846652,1725208555037,-1808.54,0.00026575,2]
[336846653,1725208555069,-880.31,0.00026575,2]
[336846654,1725208555101,-2213.92,0.00026575,2]
[336846655,1725208555131,-546.38,0.00026575,2]
[336846656,1725208555164,-3134.93,0.00026575,2]
[336846657,1725208555197,-919.7,0.00026575,2]
[336846658,1725208555229,-197.58060949,0.00026575,2]
[336846659,1725208555261,-1758.51,0.00026575,2]
[336846660,1725208555293,-811.51,0.00026575,2]
[336846661,1725208555330,-1405.42,0.00026575,2]
[336846662,1725208555362,-500.0,0.00026575,2]
[336846663,1725208555395,-867.6,0.00026575,2]
[336846664,1725208555427,-1494.95,0.00026575,2]
[336846665,1725208555460,-718.17,0.00026575,2]
[336846666,1725208555494,-982.8,0.00026575,2]
[336846667,1725208555526,-799.97,0.00026575,2]
[336846668,1725208555558,-500.0,0.00026575,2]
[336846669,1725208555591,-5754.37,0.00026575,2]
[336846670,1725208555623,-500.0,0.00026575,2]
[336846671,1725208555655,-10060.76,0.00026575,2]
[336846672,1725208555687,-662.39,0.00026575,2]
[336846673,1725208555722,-1977.52,0.00026575,2]
[336846674,1725208555754,-551.67,0.00026575,2]
[336846675,1725208555957,-2547.84,0.00026575,2]
[336846676,1725208555991,-683.21,0.00026575,2]
[336846677,1725208556025,-500.0,0.00026575,2]
[336846678,1725208556059,-500.0,0.00026575,2]
[336846679,1725208556092,-1076.23,0.00026575,2]
[336846680,1725208556126,-1563.4,0.00026575,2]
[336846681,1725208556162,-2136.59,0.00026575,2]
[336846682,1725208556196,-597.53,0.00026575,2]
[336846683,1725208556229,-1412.58,0.00026575,2]
[336846684,1725208556264,-500.0,0.00026575,2]
[336846685,1725208556299,-535.08869008,0.00026575,2]
[336846686,1725208556336,-503.65695092,0.00026575,2]
[336846687,1725208556370,-937.31,0.00026575,2]
[336846688,1725208556404,-624.83,0.00026575,2]
[336846689,1725208556437,-679.44,0.00026575,2]
[336846690,1725208556474,-2321.06,0.00026575,2]
[336846691,1725208556507,-1642.54,0.00026575,2]
[336846692,1725208556539,-500.0,0.00026575,2]
[336846693,1725208556573,-500.0,0.00026575,2]
[336846694,1725208556606,-1615.73,0.00026575,2]
[336846695,1725208556640,-2223.21,0.00026575,2]
[336846696,1725208556672,-605.87,0.00026575,2]
[336846697,1725208556704,-500.0,0.00026575,2]
[336846698,1725208556735,-500.0,0.00026575,2]
[336846699,1725208556768,-505.27,0.00026575,2]
[336846700,1725208556801,-2541.93,0.00026575,2]
[336846701,1725208556832,-500.0,0.00026575,2]
[336846702,1725208556864,-500.0,0.00026575,2]
[336846703,1725208556897,-2393.85,0.00026575,2]
[336846704,1725208556932,-1003.61,0.00026575,2]
[336846705,1725208556966,-207.943127,0.00026575,2]
[336846706,1725208556997,-207.943127,0.00026575,2]
[336846707,1725208557028,-207.0921398,0.00026575,2]
[336846708,1725208557060,-1000.0,0.00026621,2]
[336846709,1725208557092,-1330.3987972,0.0002664,2]
[336846710,1725208557123,-338.432064,0.000267,2]
[336846711,1725208557153,-150.0,0.0002675,2]
[336846712,1725208557185,-150.0,0.0002675,2]
[336846713,1725208557217,-150.245,0.0002675,2]
[336846714,1725208557249,-150.0,0.0002675,2]
[336846715,1725208557281,-218.699,0.0002675,2]
[336846716,1725208557315,-307.7598817,0.00026764,2]
[336846717,1725208557348,-285.068132,0.00026764,2]
[336846718,1725208557381,-153.0,0.00026764,2]
[336846719,1725208557415,-153.0,0.00026764,2]